bitfinex/quotes_ETHUSD_20250824
["timestamp","ask_amount","ask_price","bid_price","bid_amount"]
[1756028774966,5.23766421,4790.7,4790.3,0.001]
[1756028775271,8.00789068,4790.4,4790.3,0.001]
[1756028775474,12.34144025,4790.4,4790.3,0.001]
[1756028776232,12.81124025,4790.4,4790.3,0.001]
[1756028778158,12.60954025,4790.4,4790.3,0.7582]
[1756028781534,9.12354025,4790.4,4790.3,0.2884]
[1756028781750,12.60954025,4790.4,4790.3,0.7427]
[1756028782118,12.60954025,4790.4,4790.3,0.001]
[1756028782246,12.60954025,4790.4,4790.3,0.3041]
[1756028784793,12.60954025,4790.4,4789.8,0.02]
[1756028784950,1.12687889,4790.0,4789.8,0.02]
[1756028785151,8.00789068,4790.4,4789.9,0.3031]
[1756028785389,4.13241968,4790.3,4789.9,0.3031]
[1756028785696,0.64641968,4790.2,4789.9,0.3031]
[1756028785925,3.93677123,4790.1,4789.9,0.3031]
[1756028786224,0.45077123,4790.0,4789.9,0.3031]
[1756028786524,3.93677123,4790.0,4789.9,0.3031]
[1756028786684,3.93677123,4790.0,4789.9,0.7574]
[1756028787089,3.93677123,4790.0,4789.9,0.3031]
[1756028787496,3.93677123,4790.0,4789.9,0.7574]
[1756028788018,3.93677123,4790.0,4789.9,0.3031]
[1756028788220,3.93677123,4790.0,4789.9,2.84512625]
[1756028788420,0.45077123,4790.0,4789.9,3.13173887]
[1756028788579,1.202192,4790.0,4789.9,3.13173887]
[1756028788780,0.45077123,4790.0,4789.9,3.13173887]
[1756028795320,0.45077123,4790.0,4789.9,5.67743887]
[1756028795535,0.45077123,4790.0,4789.9,6.13173887]
[1756028795740,0.56381103,4790.7,4790.5,2.08746477]
[1756028796052,0.45091455,4790.6,4790.5,2.08746477]
[1756028796195,0.45091455,4790.6,4790.5,2.39056477]
[1756028796495,0.45091455,4790.6,4790.5,2.84486477]
[1756028796936,0.45091455,4790.6,4790.5,3.40085592]
[1756028798726,0.45091455,4790.6,4790.5,3.40185592]
[1756028803261,0.45091455,4790.6,4790.5,6.40185592]
[1756028803465,0.002,4790.7,4790.5,6.40185592]
[1756028803665,0.002,4790.7,4790.6,6.02672119]
[1756028803869,0.45206705,4790.7,4790.6,7.83781317]
[1756028804257,0.002,4790.7,4790.6,7.83781317]
[1756028804688,0.002,4790.7,4790.6,10.38351317]
[1756028804843,0.002,4791.2,4791.1,10.09509403]
[1756028805168,0.002,4791.2,4791.1,16.88319403]
[1756028805367,0.002,4791.2,4791.1,19.29037039]
[1756028805879,0.002,4791.2,4791.1,19.74030539]
[1756028806101,0.002,4791.6,4791.5,2.08702911]
[1756028806262,0.002,4791.6,4791.5,16.88301979]
[1756028806587,0.002,4791.6,4791.5,17.33731979]
[1756028806755,0.002,4791.6,4791.5,19.47919779]
[1756028807477,0.002,4791.6,4791.5,19.56283779]
[1756028808584,0.002,4791.6,4791.5,11.55494711]
[1756028812479,0.002,4791.6,4791.5,11.65894711]
[1756028815579,1e-08,4791.8,4791.6,3.0]
[1756028815779,1e-08,4791.8,4791.7,11.01052]
[1756028815991,1e-08,4791.8,4791.7,11.46162]
[1756028816199,1e-08,4791.8,4791.7,11.545254]
[1756028816717,1e-08,4791.8,4791.7,19.10204468]
[1756028820828,1e-08,4791.8,4791.7,15.61804468]
[1756028820996,1e-08,4791.8,4791.7,19.10204468]
[1756028827005,0.75780001,4791.8,4791.7,2.170576]
[1756028827225,0.75780001,4791.8,4791.7,5.569942]
[1756028827632,1.20738242,4791.8,4791.7,5.569942]
[1756028828029,1.20738242,4791.8,4791.7,2.086942]
[1756028829907,1.20738242,4791.8,4791.7,5.867642]
[1756028829908,0.44958242,4791.8,4791.7,5.867642]
[1756028830120,0.44958242,4791.8,4791.7,7.56789606]
[1756028830543,0.44958242,4791.8,4791.7,7.27019606]
[1756028831144,1.20738242,4791.8,4791.7,5.673942]
[1756028831321,1.20738242,4791.8,4791.7,5.569942]
[1756028832453,1.20738242,4791.8,4791.7,2.086942]
[1756028832815,1.20738242,4791.8,4791.1,0.001]
[1756028833145,0.56313811,4791.2,4791.1,0.001]
[1756028833344,0.73858241,4791.2,4791.1,0.001]
[1756028833510,1.30182849,4791.2,4791.1,0.001]
[1756028833712,1.20738241,4791.2,4791.1,0.001]
[1756028834324,1.20738241,4791.2,4791.1,2.08820335]
[1756028834631,0.73858241,4791.2,4791.1,2.08820335]
[1756028834948,1.20738241,4791.2,4791.1,2.08820335]
[1756028835111,0.44958241,4791.2,4791.1,2.08820335]
[1756028836011,1.20738241,4791.2,4791.1,2.08820335]
[1756028842163,1.20738241,4791.2,4791.1,0.001]
[1756028845747,1.20738241,4791.2,4791.1,2.08820335]
[1756028853630,1.77068474,4791.2,4791.1,2.08820335]
[1756028854165,1.01288474,4791.2,4791.1,2.39790335]
[1756028854459,0.44958241,4791.2,4791.1,2.39790335]
[1756028855164,0.44958241,4791.2,4791.1,2.86900335]
[1756028855343,0.44958241,4791.2,4791.1,2.39790335]
[1756028860080,0.44958241,4791.2,4791.1,2.08820335]
[1756028860262,0.73638241,4791.2,4791.1,2.08820335]
[1756028860657,1.16682372,4791.2,4791.1,2.08820335]
[1756028861381,1.73035337,4791.2,4791.1,2.08820335]
[1756028862380,1.16682372,4791.2,4791.1,2.08820335]
[1756028863486,1.73084053,4791.2,4791.1,2.08820335]
[1756028866397,1.01479752,4791.2,4791.1,2.08820335]
[1756028866758,1.01479752,4791.2,4791.1,2.39790335]
[1756028866960,0.45082372,4791.2,4791.1,2.84652184]
[1756028867276,0.45082372,4791.2,4791.1,3.31762184]
[1756028867476,0.45082372,4791.2,4791.1,6.42162184]
[1756028868259,0.45082372,4791.2,4791.1,5.95052184]
[1756028868694,0.45082372,4791.2,4791.1,9.43552184]
[1756028869273,0.45082372,4791.2,4791.1,9.90662184]
[1756028870589,0.002,4791.7,4791.6,2.08698555]
[1756028870792,0.00200001,4791.8,4791.7,2.086942]
[1756028870995,0.00200001,4791.8,4791.7,5.396642]
[1756028871191,0.00200001,4791.8,4791.7,6.431716]
[1756028872484,1e-08,4791.8,4791.7,7.091716]
[1756028872795,1e-08,4791.8,4791.7,9.233594]
[1756028879099,1e-08,4791.8,4791.7,8.102494]
[1756028879271,1e-08,4791.8,4791.7,11.596494]
[1756028879472,1e-08,4791.8,4791.7,19.60438468]
[1756028881390,1e-08,4791.8,4791.7,15.80068468]
[1756028881591,0.73310001,4791.8,4791.7,8.579942]
[1756028882484,0.73310001,4791.8,4791.7,5.086942]
[1756028882818,0.73310001,4791.8,4791.7,8.579942]
[1756028882975,0.73310001,4791.8,4791.7,5.086942]
[1756028883306,0.73310001,4791.8,4791.7,8.579942]
[1756028883502,0.73310001,4791.8,4791.7,5.086942]
[1756028883669,0.73310001,4791.8,4791.7,8.579942]
[1756028884095,1e-08,4791.8,4791.7,8.579942]
[1756028884269,1e-08,4791.8,4791.7,10.66652901]
[1756028884473,1e-08,4791.8,4791.7,7.17352901]
[1756028884672,1e-08,4791.8,4791.7,10.66552901]
[1756028884881,0.73310001,4791.8,4791.7,10.66552901]
[1756028885082,1e-08,4791.8,4791.7,8.578942]
[1756028885607,0.30540001,4791.8,4791.7,8.578942]
[1756028886512,0.73310001,4791.8,4791.7,8.578942]
[1756028887020,0.73310001,4791.8,4791.7,5.578942]
[1756028887217,0.73310001,4791.8,4791.7,2.086942]
[1756028887511,1.1828632,4791.8,4791.7,2.086942]
[1756028889124,1.1828632,4791.8,4791.1,0.001]
[1756028889331,0.44976319,4791.7,4791.2,2.08715979]
[1756028889488,0.3054,4791.3,4791.2,2.08715979]
[1756028889693,0.44976319,4791.3,4791.2,5.58115979]
[1756028889880,0.44976319,4791.7,4791.4,2.08707267]
[1756028890210,0.3054,4791.5,4791.4,5.58307267]
[1756028890401,1.18286319,4791.5,4791.4,2.08707267]
[1756028891079,0.7331,4791.5,4791.4,5.58307267]
[1756028891724,1.18312103,4791.5,4791.4,2.08707267]
[1756028891923,1.18312103,4791.5,4791.1,0.001]
[1756028892219,0.87772103,4791.4,4791.2,2.087151]
[1756028892426,0.75542103,4791.3,4791.1,2.08820204]
[1756028892582,0.87772103,4791.2,4791.1,2.08820204]
[1756028892782,1.18312103,4791.2,4791.1,2.08820204]
[1756028893312,1.18312103,4791.2,4791.1,0.001]
[1756028894003,1.74558772,4791.2,4791.1,0.001]
[1756028894175,1.18312103,4791.2,4791.1,0.001]
[1756028894601,1.74558772,4791.2,4791.1,0.001]
[1756028895992,1.18312103,4791.2,4791.1,0.001]
[1756028896382,1.18312103,4791.2,4791.1,2.08820335]
[1756028897484,1.18312103,4791.2,4791.1,0.001]
[1756028898315,1.18312103,4791.2,4791.1,2.08820335]
[1756028898515,1.18312103,4791.2,4791.1,0.001]
[1756028899301,1.18312103,4791.2,4791.1,2.08820335]
[1756028904345,1.18312103,4791.2,4791.1,0.001]
[1756028904503,1.18312103,4791.2,4791.1,2.08820335]
[1756028905397,1.18312103,4791.2,4791.1,0.001]
[1756028907929,1.74558772,4791.2,4791.1,0.001]
[1756028908363,1.18312103,4791.2,4791.1,0.001]
[1756028910082,2.59397185,4791.2,4791.1,0.001]
[1756028910250,5.96765635,4791.2,4791.1,0.001]
[1756028910421,1.84312103,4791.2,4791.1,0.001]
[1756028911069,1.92680903,4791.2,4791.1,0.001]
[1756028912383,2.74723618,4791.1,4790.8,0.02]
[1756028912545,8.96559068,4790.9,4790.8,0.02]
[1756028912745,9.41561171,4790.9,4790.8,0.02]
[1756028913093,13.07027374,4790.9,4790.8,0.02]
[1756028913297,13.07025054,4790.9,4790.8,0.02]
[1756028913598,13.39697954,4790.9,4790.8,0.02]
[1756028913795,15.48427002,4790.9,4790.8,0.02]
[1756028914174,5.74733405,4790.8,4790.7,0.001]
[1756028914374,6.69029391,4790.8,4790.7,0.001]
[1756028914691,7.14969391,4790.8,4790.7,0.001]
[1756028915660,5.06235986,4790.8,4790.7,0.001]
[1756028916167,7.14969391,4790.8,4790.7,0.001]
[1756028918384,6.56312637,4790.8,4790.7,0.001]
[1756028918785,8.65046042,4790.8,4790.7,0.001]
[1756028919686,8.65039361,4790.8,4790.7,0.001]
[1756028919890,8.73409461,4790.8,4790.7,0.001]
[1756028920190,6.64676056,4790.8,4790.7,0.001]
[1756028920788,10.13776056,4790.8,4790.7,0.001]
[1756028921195,8.63699405,4790.8,4790.7,0.001]
[1756028921396,10.13776056,4790.8,4790.7,0.001]
[1756028921993,12.22509461,4790.8,4790.7,0.001]
[1756028922797,12.02992259,4790.8,4790.7,0.001]
[1756028922981,12.22513236,4790.8,4790.7,0.001]
[1756028923509,10.13779856,4790.8,4790.7,0.001]
[1756028924174,0.66,4790.7,4790.3,0.001]
[1756028924475,3.9577,4790.5,4790.3,0.001]
[1756028924664,4.40772103,4790.5,4790.3,0.001]
[1756028924868,4.95082203,4790.5,4790.3,0.001]
[1756028926434,4.19372203,4790.5,4790.3,0.001]
[1756028926821,4.49142203,4790.5,4790.3,0.001]
[1756028927006,4.95082203,4790.5,4790.3,0.001]
[1756028927205,5.1460268,4790.5,4790.3,0.001]
[1756028927500,5.1460268,4790.5,4789.8,0.021]
[1756028927705,0.66,4790.3,4789.8,0.021]
[1756028928054,3.93902103,4790.2,4789.8,0.021]
[1756028928204,4.02272203,4790.2,4789.8,0.021]
[1756028929272,0.53372203,4790.2,4790.1,0.2887]
[1756028929551,4.69067432,4790.2,4790.1,2.80703908]
[1756028931347,4.69094071,4790.2,4790.1,2.80703908]
[1756028931856,3.94102103,4790.2,4790.1,2.80703908]
[1756028932044,0.45002103,4790.2,4790.1,2.80703908]
[1756028932445,1.01252673,4790.2,4790.1,2.80703908]
[1756028932640,4.50352673,4790.2,4790.1,2.80703908]
[1756028933049,3.94002103,4790.2,4790.1,3.29881348]
[1756028933552,0.45002103,4790.2,4790.1,3.29881348]
[1756028934441,0.002,4790.5,4790.4,2.08750835]
[1756028934644,0.45210268,4790.5,4790.4,2.84220835]
[1756028934953,0.002,4790.5,4790.4,2.84220835]
[1756028935156,0.002,4790.5,4790.4,4.1957533]
[1756028935753,0.002,4790.5,4790.4,7.1957533]
[1756028937233,0.002,4791.0,4790.9,2.08729048]
[1756028937472,0.002,4791.0,4790.9,2.39699048]
[1756028937670,0.002,4791.0,4790.9,4.2269786]
[1756028939637,0.002,4791.0,4790.9,7.3309786]
[1756028940437,0.002,4791.0,4790.9,7.4146256]
[1756028942077,0.002,4791.2,4791.0,3.0]
[1756028942288,0.002,4791.2,4791.1,8.89090335]
[1756028942581,0.002,4791.2,4791.1,11.47778135]
[1756028946884,0.002,4791.2,4791.1,11.03278135]
[1756028947760,0.002,4791.2,4791.1,7.53878135]
[1756028948088,0.002,4791.2,4791.1,11.03078135]
[1756028948287,0.002,4791.2,4791.1,11.47578135]
[1756028948785,0.3023,4791.2,4791.1,4.22908135]
[1756028949088,0.002,4791.2,4791.1,2.08720335]
[1756028949782,0.002,4791.2,4791.1,2.39690335]
[1756028951389,0.002,4791.2,4791.1,2.08720335]
[1756028960606,0.7595,4791.2,4791.1,2.08720335]
[1756028960805,1.20936779,4791.2,4790.9,2.08725772]
[1756028961102,0.90706779,4791.1,4790.3,0.001]
[1756028961308,0.3003,4790.4,4790.3,0.001]
[1756028961610,0.75016779,4790.4,4790.3,2.08855192]
[1756028961782,1.22416779,4790.4,4790.3,2.08855192]
[1756028964714,0.75016779,4790.4,4790.3,2.08855192]
[1756028964920,0.44986779,4790.4,4790.3,2.08855192]
[1756028965922,0.44986779,4790.4,4790.3,2.39225192]
[1756028967720,0.44986779,4790.4,4790.3,3.69520452]
[1756028967923,0.44986779,4790.4,4790.3,10.18420452]
[1756028968489,0.5625057,4791.0,4790.9,2.08729048]
[1756028968722,1.01327692,4791.0,4790.9,2.08729048]
[1756028969822,0.45077122,4791.0,4790.9,2.39099048]
[1756028970297,0.45077122,4791.0,4790.9,3.23369522]
[1756028970499,0.45077122,4791.0,4790.9,6.72469522]
[1756028971126,0.45077122,4791.0,4790.9,15.1922859]
[1756028971529,0.45077122,4791.0,4790.9,15.2962859]
[1756028972503,0.45077122,4791.0,4790.9,18.2962859]
[1756028973020,0.45077122,4791.0,4790.9,10.28839522]
[1756028974429,0.45077122,4791.0,4790.9,9.82869522]
[1756028977207,0.002,4791.2,4791.0,3.0]
[1756028977406,0.002,4791.2,4791.1,8.48139428]
[1756028977609,0.002,4791.2,4791.1,10.56859763]
[1756028977934,0.002,4791.2,4791.1,10.87229763]
[1756028979955,0.002,4791.2,4791.1,10.56859763]
[1756028982344,0.002,4791.2,4791.1,10.87229763]
[1756028982817,0.002,4791.2,4791.1,10.56859763]
[1756028988848,0.7862,4791.2,4791.1,10.56859763]
[1756028990129,0.3122,4791.2,4791.1,10.56859763]
[1756028990452,0.002,4791.2,4791.1,7.07959763]
[1756028990656,0.002,4791.2,4791.1,7.38329763]
[1756028991366,0.002,4791.2,4791.1,7.07959763]
[1756028994250,0.3098,4791.2,4791.1,7.07959763]
[1756028994430,0.7817,4791.2,4791.1,8.57320335]
[1756028995159,1.23244292,4791.2,4791.1,8.57320335]
[1756029002499,1.23244292,4791.2,4790.8,0.001]
[1756029002792,0.74991968,4791.0,4790.8,0.001]
[1756029003095,2.07914327,4790.9,4790.8,0.001]
[1756029003299,8.00789068,4790.8,4790.4,0.001]
[1756029003484,0.3078,4790.5,4790.4,0.001]
[1756029003793,2.36354292,4790.5,4790.4,0.001]
[1756029003975,2.83544292,4790.5,4790.4,0.001]
[1756029004400,3.58633654,4790.5,4790.4,0.001]
[1756029004903,2.83544292,4790.5,4790.4,0.001]
[1756029005083,3.03103207,4790.5,4790.4,0.001]
[1756029005269,3.11472707,4790.5,4790.4,0.001]
[1756029005469,7.26072707,4790.5,4790.4,0.001]
[1756029005666,7.58743928,4790.5,4790.4,0.001]
[1756029006069,10.58743928,4790.5,4790.4,0.001]
[1756029007025,10.78265172,4790.5,4790.4,0.001]
[1756029007303,12.67490405,4790.5,4790.4,0.001]
[1756029007505,12.86997041,4790.5,4790.4,0.001]
[1756029007872,3.0,4790.4,4790.3,0.001]
[1756029008071,12.62898911,4790.4,4790.3,0.001]
[1756029008475,12.43392275,4790.4,4790.3,0.001]
[1756029009003,14.5214311,4790.4,4790.3,0.001]
[1756029009307,18.0084311,4790.4,4790.3,0.001]
[1756029009495,15.92092275,4790.4,4790.3,0.001]
[1756029010105,12.43392275,4790.4,4790.3,0.001]
[1756029010430,17.0424403,4790.4,4790.3,0.001]
[1756029010579,19.12994865,4790.4,4790.3,0.001]
[1756029010782,17.0424403,4790.4,4790.3,0.001]
[1756029010998,18.9343595,4790.4,4790.3,0.001]
[1756029011286,19.12906477,4790.4,4790.3,0.001]
[1756029012396,17.81284195,4790.4,4790.3,0.001]
[1756029012602,15.7253336,4790.4,4790.3,0.001]
[1756029012799,17.81284195,4790.4,4790.3,0.001]
[1756029013422,18.00735575,4790.4,4790.3,0.001]
[1756029013592,19.1288733,4790.4,4790.3,0.001]
[1756029013790,6.29018227,4790.4,4790.3,0.001]
[1756029014027,8.46115092,4790.4,4790.3,0.001]
[1756029016117,7.80215092,4790.4,4790.3,0.001]
[1756029016318,8.54870938,4790.4,4790.3,0.001]
[1756029016725,0.45074292,4790.4,4790.3,0.3083]
[1756029016892,4.04788295,4790.4,4790.3,0.3083]
[1756029017092,3.93874292,4790.4,4790.3,0.3083]
[1756029017723,0.45074292,4790.4,4790.3,0.3083]
[1756029017899,2.38245513,4790.5,4790.4,2.08750835]
[1756029018228,5.42271221,4790.5,4790.4,2.39480835]
[1756029018423,5.87345513,4790.5,4790.4,2.39480835]
[1756029019019,5.87345513,4790.5,4790.4,2.84330835]
[1756029019388,5.87345513,4790.5,4790.4,2.39480835]
[1756029019821,5.54674292,4790.5,4790.4,2.39480835]
[1756029021027,2.05574292,4790.5,4790.4,2.39480835]
[1756029021326,3.491,4790.5,4790.4,2.84330835]
[1756029021530,3.491,4790.5,4790.4,3.33669824]
[1756029021822,0.002,4791.2,4791.0,2.08722167]
[1756029022124,3.491,4791.1,4791.0,2.08722167]
[1756029022310,3.93916255,4791.1,4791.0,2.39012167]
[1756029023926,3.93916255,4791.1,4791.0,2.85582167]
[1756029024731,3.93916255,4791.1,4791.0,2.39012167]
[1756029025414,0.44816255,4791.1,4791.0,2.39012167]
[1756029025730,0.45016255,4791.2,4791.1,2.08720335]
[1756029025931,3.94116255,4791.2,4791.1,2.39010335]
[1756029027857,3.94116255,4791.2,4791.1,0.3029]
[1756029028018,3.94116255,4791.2,4791.0,2.08723438]
[1756029028342,0.44816255,4791.1,4791.0,2.08723438]
[1756029034170,0.45016255,4791.1,4791.0,2.08723438]
[1756029034353,0.45016255,4791.1,4791.0,2.39013438]
[1756029038845,0.45016255,4791.1,4791.0,0.3029]
[1756029039198,0.45016255,4791.1,4791.0,2.39014692]
[1756029039367,1.0100455,4791.1,4791.0,2.39014692]
[1756029039535,1.0100455,4791.1,4791.0,0.3029]
[1756029039926,1.0100455,4791.1,4791.0,2.08724692]
[1756029040168,4.4970455,4791.1,4791.0,2.08724692]
[1756029043473,3.93716255,4791.1,4791.0,2.08724692]
[1756029045468,3.93716255,4791.1,4790.9,2.08728065]
[1756029045669,1.19026255,4791.0,4790.7,2.0873716]
[1756029045960,4.38816255,4790.9,4790.4,2.08750835]
[1756029046162,0.2891,4790.5,4790.4,2.08750835]
[1756029046361,4.22426255,4790.5,4790.4,2.08750835]
[1756029046875,4.67726255,4790.5,4790.4,2.08750835]
[1756029047201,5.24045108,4790.5,4790.4,2.08750835]
[1756029047403,4.67726255,4790.5,4790.4,2.08750835]
[1756029048770,4.22426255,4790.5,4790.4,2.08750835]
[1756029051279,4.67726255,4790.5,4790.4,2.08750835]
[1756029051484,5.42382101,4790.5,4790.4,2.08750835]
[1756029052702,5.42382101,4790.5,4790.3,2.08854729]
[1756029052905,0.44816255,4790.4,4790.3,2.08854729]
[1756029055303,3.94,4790.5,4790.4,2.08750835]
[1756029055508,4.6958584,4790.5,4790.4,2.08750835]
[1756029058032,4.6958584,4790.5,4790.3,0.001]
[1756029058033,4.6958584,4790.5,4790.3,2.08855173]
[1756029058319,0.4514584,4790.4,4790.3,0.001]
[1756029058523,1.41290924,4790.4,4790.3,0.001]
[1756029060489,1.41290924,4790.4,4790.3,2.08855192]
[1756029060729,3.01790924,4790.4,4790.3,2.08855192]
[1756029060926,3.0178844,4790.4,4790.3,2.08855192]
[1756029064210,2.8219584,4790.4,4790.3,2.08855192]
[1756029065755,6.3089584,4790.4,4790.3,2.08855192]
[1756029066651,6.50480121,4790.4,4790.3,0.001]
[1756029067046,6.50480273,4790.4,4790.3,0.001]
[1756029068956,6.50480273,4790.4,4790.3,2.08855192]
[1756029069460,6.50480273,4790.4,4790.3,0.001]
[1756029070225,6.3089584,4790.4,4790.3,0.001]
[1756029070428,6.50477536,4790.4,4790.3,0.001]
[1756029072367,6.50477536,4790.4,4790.1,0.001]
[1756029072368,6.70058641,4790.4,4790.1,0.001]
[1756029072571,8.00789068,4790.2,4790.1,0.001]
[1756029072748,12.64237709,4790.2,4790.1,0.001]
[1756029073066,13.18717609,4790.2,4790.1,0.001]
[1756029073362,13.51389487,4790.2,4790.1,0.001]
[1756029078649,5.50600419,4790.2,4790.1,0.001]
[1756029079979,5.04490419,4790.2,4790.1,0.001]
[1756029080363,1.62737618,4790.2,4790.1,0.001]
[1756029080559,5.30988107,4790.2,4790.1,0.001]
[1756029081270,13.31777175,4790.2,4790.1,0.001]
[1756029081693,5.30988107,4790.2,4790.1,0.001]
[1756029082195,6.16537568,4790.2,4790.1,0.001]
[1756029082574,9.16537568,4790.2,4790.1,0.001]
[1756029082793,3.66,4790.1,4790.0,0.001]
[1756029082998,4.8117579,4790.1,4790.0,0.001]
[1756029083164,5.2598579,4790.1,4790.0,0.001]
[1756029083872,5.34354707,4790.1,4790.0,0.001]
[1756029087088,5.34354655,4790.1,4790.0,0.001]
[1756029087292,5.34354655,4790.1,4789.8,0.021]
[1756029087487,4.32944055,4790.0,4789.8,0.021]
[1756029087664,0.95626329,4789.9,4789.8,0.021]
[1756029087863,1.40436329,4789.9,4789.8,0.021]
[1756029089186,1.48806829,4789.9,4789.8,0.021]
[1756029089363,1.68358608,4789.9,4789.8,0.021]
[1756029089568,1.48806829,4789.9,4789.8,0.021]
[1756029090608,1.48807837,4789.9,4789.8,0.021]
[1756029097082,1.81484779,4789.9,4789.8,0.021]
[1756029097283,2.01051669,4789.9,4789.8,0.021]
[1756029097602,2.0098554,4789.9,4789.8,0.021]
[1756029100082,1.68308598,4789.9,4789.4,0.001]
[1756029100283,4.32898098,4789.8,4789.4,0.001]
[1756029100619,4.32948177,4789.8,4789.4,0.001]
[1756029101219,5.08688177,4789.8,4789.4,0.001]
[1756029101518,5.17058677,4789.8,4789.4,0.001]
[1756029102744,0.84248177,4789.7,4789.4,0.001]
[1756029102908,4.32948177,4789.6,4789.4,0.001]
[1756029103108,2.44848177,4789.5,4789.4,0.001]
[1756029103810,3.07627177,4789.5,4789.4,0.001]
[1756029104008,3.40304603,4789.5,4789.4,0.001]
[1756029104313,3.40322712,4789.5,4789.4,0.2958]
[1756029105542,6.89022712,4789.5,4789.4,0.2958]
[1756029105742,6.89022712,4789.5,4789.4,0.001]
[1756029106037,3.40322712,4789.5,4789.4,0.001]
[1756029106210,6.89022712,4789.5,4789.4,0.001]
[1756029109422,6.56345286,4789.5,4789.4,0.001]
[1756029110656,6.36767119,4789.5,4789.4,0.001]
[1756029110837,6.56375527,4789.5,4789.4,0.001]
[1756029111141,6.36767119,4789.5,4789.4,0.001]
[1756029111342,6.56375527,4789.5,4789.4,0.001]
[1756029111846,7.33915527,4789.5,4789.4,0.001]
[1756029112437,14.48354324,4789.5,4789.4,0.001]
[1756029113435,10.99654324,4789.5,4789.4,0.001]
[1756029113616,14.48354324,4789.5,4789.4,0.001]
[1756029114341,7.66697916,4789.5,4789.4,0.001]
[1756029115475,7.66697916,4789.5,4789.1,0.041]
[1756029115476,10.66697916,4789.5,4789.1,0.041]
[1756029115646,8.68324651,4789.2,4789.1,0.041]
[1756029115842,13.31637743,4789.2,4789.1,0.041]
[1756029116080,13.87340343,4789.2,4789.1,0.041]
[1756029117377,0.66,4789.1,4788.4,0.001]
[1756029117569,1.12855195,4788.6,4788.4,0.001]
[1756029117873,1.1333,4789.1,4788.4,0.001]
[1756029117874,5.73994684,4788.5,4788.4,0.001]
[1756029118672,5.82367284,4788.5,4788.4,0.001]
[1756029118874,6.12577284,4788.5,4788.4,0.001]
[1756029119174,5.82367284,4788.5,4788.4,0.001]
[1756029119373,5.82367284,4788.5,4788.4,0.2918]
[1756029120699,5.82335126,4788.5,4788.4,0.2918]
[1756029121378,20.37033479,4788.5,4788.4,0.001]
[1756029121548,21.87507035,4788.5,4788.4,0.001]
[1756029121743,5.74838254,4788.4,4788.1,0.04]
[1756029121953,0.9621,4788.2,4788.1,0.04]
[1756029122155,8.10072565,4788.2,4788.1,0.04]
[1756029122383,10.74623613,4788.2,4788.1,0.04]
[1756029122588,8.65776865,4788.2,4788.1,0.04]
[1756029122993,8.65763865,4788.2,4788.1,0.04]
[1756029123754,7.99763865,4788.2,4788.1,0.04]
[1756029124157,8.32449952,4788.2,4788.1,0.04]
[1756029125470,11.072967,4788.2,4788.1,0.04]
[1756029126104,8.98449952,4788.2,4788.1,0.04]
[1756029126597,11.072967,4788.2,4788.1,0.04]
[1756029129501,10.74610613,4788.2,4788.1,0.04]
[1756029129889,10.74560726,4788.2,4788.1,0.04]
[1756029132263,0.66,4787.9,4787.8,0.02]
[1756029132567,19.33459338,4787.9,4787.8,0.02]
[1756029132897,18.76798863,4787.9,4787.8,0.02]
[1756029133099,19.89164038,4787.9,4787.8,0.02]
[1756029133461,17.80304204,4787.9,4787.8,0.02]
[1756029133905,19.89164038,4787.9,4787.8,0.02]
[1756029134064,17.80304204,4787.9,4787.8,0.02]
[1756029134396,19.89164038,4787.9,4787.8,0.02]
[1756029134694,18.76798863,4787.9,4787.8,0.02]
[1756029135093,15.27798863,4787.9,4787.8,0.02]
[1756029135397,18.76798863,4787.9,4787.8,0.02]
[1756029138079,2.74868559,4787.7,4787.6,0.001]
[1756029138371,14.29678237,4787.7,4787.6,0.001]
[1756029138569,17.77008237,4787.7,4787.6,0.001]
[1756029138766,18.18079462,4787.7,4787.6,0.001]
[1756029139767,18.18076709,4787.7,4787.6,0.001]
[1756029140264,19.68376387,4787.7,4787.6,0.001]
[1756029140582,19.48865738,4787.7,4787.6,0.001]
[1756029140767,19.68378884,4787.7,4787.6,0.001]
[1756029141603,11.68324651,4787.2,4787.1,0.04]
[1756029141771,17.72114073,4787.2,4787.1,0.04]
[1756029142101,18.15254073,4787.2,4787.1,0.04]
[1756029142303,18.56327037,4787.2,4787.1,0.04]
[1756029142671,18.13187037,4787.2,4787.1,0.04]
[1756029142872,17.83597037,4787.2,4787.1,0.04]
[1756029143469,14.34797037,4787.2,4787.1,0.3258]
[1756029143701,17.83597037,4787.2,4787.1,0.3258]
[1756029144275,9.15272386,4787.2,4787.1,0.3258]
[1756029144467,9.15272386,4787.2,4787.1,0.7729]
[1756029144672,9.15272386,4787.2,4787.1,0.6731]
[1756029144872,6.15272386,4787.2,4787.1,0.6731]
[1756029145786,6.15272386,4787.2,4787.1,0.226]
[1756029147322,6.15272386,4787.2,4786.8,0.02]
[1756029147511,1.12663674,4786.9,4786.8,0.02]
[1756029147712,5.26263096,4786.9,4786.8,0.3058]
[1756029149221,4.13599422,4786.9,4786.8,0.3058]
[1756029149725,3.94086276,4786.9,4786.8,0.3058]
[1756029150030,4.13659942,4786.9,4786.8,0.3058]
[1756029150330,4.13659902,4786.9,4786.8,0.3058]
[1756029153823,4.44239902,4786.9,4786.8,0.3058]
[1756029154411,4.44139902,4786.9,4786.8,0.3058]
[1756029154632,4.44139902,4786.9,4786.8,0.5043]
[1756029154946,4.44139902,4786.9,4786.8,0.3058]
[1756029158030,0.95339902,4786.9,4786.8,0.3058]
[1756029158264,4.44139902,4786.9,4786.8,0.3058]
[1756029159118,0.95339902,4786.9,4786.8,0.3058]
[1756029159363,5.26388518,4786.9,4786.8,0.3058]
[1756029159545,5.56968518,4786.9,4786.8,0.3058]
[1756029159748,5.37394892,4786.9,4786.8,0.3058]
[1756029160048,5.569843,4786.9,4786.8,0.3058]
[1756029160250,5.569843,4786.9,4786.8,2.39487829]
[1756029160455,5.569843,4786.9,4786.8,0.5043]
[1756029160819,5.569843,4786.9,4786.8,0.3058]